bitfinex/quotes_ETHUSD_20251018
["timestamp","ask_amount","ask_price","bid_price","bid_amount"]
[1760830835162,40.18002077,3895.5,3895.4,0.002]
[1760830835346,10.18002077,3895.5,3895.4,0.002]
[1760830835666,40.18002077,3895.5,3895.4,0.002]
[1760830836661,40.07972077,3895.5,3895.4,0.002]
[1760830837032,34.01431877,3895.5,3895.4,0.002]
[1760830837462,36.35630677,3895.5,3895.4,0.002]
[1760830837660,36.40106253,3895.5,3895.4,0.002]
[1760830838431,40.12447653,3895.5,3895.4,0.002]
[1760830839363,39.52262677,3895.5,3895.4,0.002]
[1760830839561,40.08072077,3895.5,3895.4,0.002]
[1760830839862,39.44364877,3895.5,3895.4,0.002]
[1760830840032,35.56264177,3895.5,3895.4,0.002]
[1760830840766,34.30562977,3895.5,3895.4,0.002]
[1760830841276,24.70752077,3895.5,3895.4,0.002]
[1760830841936,27.49922277,3895.5,3895.4,0.002]
[1760830842145,25.16786477,3895.5,3895.4,0.002]
[1760830842367,25.21262039,3895.5,3895.4,0.002]
[1760830842857,27.52587439,3895.5,3895.4,0.002]
[1760830844043,26.94051739,3895.5,3895.4,0.002]
[1760830844981,27.31386439,3895.5,3895.4,0.002]
[1760830845175,24.87238739,3895.5,3895.4,0.002]
[1760830845552,19.40728939,3895.5,3895.4,0.002]
[1760830845757,19.02163439,3895.5,3895.4,0.4602]
[1760830845951,14.53869739,3895.5,3895.4,0.002]
[1760830846156,14.53869739,3895.5,3895.4,0.4602]
[1760830846370,13.87425339,3895.5,3895.4,0.4602]
[1760830846985,10.02207639,3895.5,3895.4,0.4602]
[1760830847147,27.07530139,3895.5,3895.4,0.4602]
[1760830847346,26.08330139,3895.5,3895.4,0.4602]
[1760830848073,10.02207639,3895.5,3895.4,0.4602]
[1760830848280,26.08330139,3895.5,3895.4,0.4602]
[1760830848476,12.31983639,3895.5,3895.4,0.4602]
[1760830849060,10.02207639,3895.5,3895.4,0.4602]
[1760830849247,18.24937639,3895.5,3895.4,0.4602]
[1760830849447,15.59789539,3895.5,3895.4,0.4602]
[1760830849950,13.90476839,3895.5,3895.4,0.4602]
[1760830850148,15.67515139,3895.5,3895.4,0.4602]
[1760830851174,10.02207639,3895.5,3895.4,0.4602]
[1760830851379,17.10730539,3895.5,3895.4,0.4602]
[1760830851579,17.10730539,3895.5,3895.4,0.002]
[1760830851766,13.05222339,3895.5,3895.4,0.002]
[1760830852075,12.94922498,3895.5,3895.4,0.4602]
[1760830852263,22.55096698,3895.5,3895.4,0.4602]
[1760830852458,22.95370136,3895.5,3895.4,0.4602]
[1760830852854,22.12072336,3895.5,3895.4,0.4602]
[1760830853273,20.66872336,3895.5,3895.4,0.4602]
[1760830854324,10.32181236,3895.5,3895.4,0.4602]
[1760830854452,20.64959236,3895.5,3895.4,0.4602]
[1760830855489,22.69194836,3895.5,3895.4,0.4602]
[1760830855866,22.69194836,3895.5,3895.4,0.002]
[1760830856296,22.69194836,3895.5,3895.4,0.4602]
[1760830856498,21.10594336,3895.5,3895.4,0.4602]
[1760830856898,7.7547478,3895.5,3895.4,0.4602]
[1760830857298,10.32181236,3895.5,3895.4,0.4602]
[1760830858208,10.27705674,3895.5,3895.4,0.4602]
[1760830859421,9.87432236,3895.5,3895.4,0.4602]
[1760830860492,12.14444636,3895.5,3895.4,0.4602]
[1760830861385,12.18919946,3895.5,3895.4,0.4602]
[1760830861583,9.6221349,3895.5,3895.4,0.002]
[1760830861899,7.3520109,3895.5,3895.4,0.4602]
[1760830862810,2.4073531,3895.5,3895.4,0.4602]
[1760830863010,7.3520109,3895.5,3895.4,0.4602]
[1760830866719,0.0457531,3895.5,3895.4,0.4602]
[1760830866926,0.40269863,3895.6,3895.4,0.4602]
[1760830867092,0.001,3895.9,3895.4,0.9204]
[1760830867093,0.04474445,3895.7,3895.4,0.9204]
[1760830867287,0.001,3895.9,3895.5,0.4677]
[1760830867689,0.001,3895.9,3895.6,0.10295811]
[1760830868114,0.001,3895.9,3895.7,0.4677]
[1760830868294,0.001,3895.9,3895.8,0.02566866]
[1760830868695,0.128,3895.8,3895.5,2.5670557]
[1760830868910,0.128,3895.7,3895.6,0.25710557]
[1760830869189,0.001,3895.9,3895.8,0.1029491]
[1760830869594,0.001,3895.9,3895.8,0.5706491]
[1760830870198,0.04574147,3895.9,3895.8,0.5706491]
[1760830878726,0.04574147,3895.9,3895.8,0.1029491]
[1760830878929,0.04574147,3895.9,3895.8,0.5706491]
[1760830880733,0.04574147,3895.9,3895.8,0.1029491]
[1760830880927,0.67934147,3895.9,3895.8,0.1029491]
[1760830881325,0.6346,3895.9,3895.8,0.1029491]
[1760830883413,0.001,3895.9,3895.8,0.5706491]
[1760830883812,0.001,3895.9,3895.8,3.45128197]
[1760830885328,0.04573947,3895.9,3895.8,3.45128197]
[1760830885529,0.04573947,3895.9,3895.8,0.88441509]
[1760830888542,0.04573947,3895.9,3895.8,3.45128197]
[1760830893930,0.04573947,3895.9,3895.8,0.88441509]
[1760830894137,0.04573947,3895.9,3895.8,0.5706491]
[1760830894946,0.04573947,3895.9,3895.8,0.1029491]
[1760830899651,0.128,3895.8,3895.6,3.03378562]
[1760830899853,0.04573947,3895.9,3895.7,0.10294725]
[1760830900026,0.04573947,3895.9,3895.7,0.56974725]
[1760830900554,0.04573947,3895.9,3895.7,0.10294725]
[1760830900750,0.04573947,3895.9,3895.7,0.56974725]
[1760830901258,0.04573947,3895.9,3895.7,0.10294725]
[1760830901435,0.04573947,3895.9,3895.7,0.56974725]
[1760830901818,0.04573947,3895.9,3895.7,0.10294725]
[1760830902250,0.128,3895.7,3895.5,0.002]
[1760830902462,0.04573947,3895.9,3895.5,0.57175228]
[1760830902850,0.04573947,3895.9,3895.5,0.10495228]
[1760830904466,0.04573947,3895.9,3895.5,0.002]
[1760830904671,0.001,3895.9,3895.5,0.002]
[1760830905266,0.6336,3895.8,3895.5,0.002]
[1760830906970,0.6336,3895.8,3895.5,0.4688]
[1760830907670,0.04574285,3895.9,3895.6,0.49246998]
[1760830907872,0.04574285,3895.9,3895.6,0.4668]
[1760830908373,0.04574285,3895.9,3895.6,2.8709783]
[1760830908574,0.04574285,3895.9,3895.7,0.4668]
[1760830908741,0.001,3895.9,3895.7,0.4668]
[1760830909161,0.001,3895.9,3895.8,0.4668]
[1760830911882,0.04574098,3895.9,3895.8,0.4668]
[1760830919196,0.04574098,3895.9,3895.8,0.81363195]
[1760830920600,0.04574098,3895.9,3895.8,0.4668]
[1760830921109,0.128,3895.8,3895.7,0.10294539]
[1760830921470,0.128,3895.8,3895.7,0.56974539]
[1760830922171,0.128,3895.8,3895.7,3.13667816]
[1760830926182,0.04574098,3895.9,3895.8,2.56686688]
[1760830926183,0.17374098,3895.9,3895.8,2.56686688]
[1760830926387,0.17374098,3895.9,3895.8,3.58192832]
[1760830926696,0.17374098,3895.9,3895.8,5.30992832]
[1760830926897,0.129,3895.9,3895.8,5.4836693]
[1760830930907,0.129,3895.9,3895.8,3.7556693]
[1760830931106,0.129,3895.9,3895.8,3.78133796]
[1760830933005,0.129,3895.9,3895.8,5.50933796]
[1760830933220,0.129,3895.9,3895.8,5.4836693]
[1760830936526,0.129,3895.9,3895.8,3.7556693]
[1760830936723,0.129,3895.9,3895.8,5.50933796]
[1760830936904,0.129,3895.9,3895.8,5.4836693]
[1760830938427,0.001,3895.9,3895.8,5.4836693]
[1760830939925,0.001,3895.9,3895.8,3.7556693]
[1760830940324,0.001,3895.9,3895.8,0.74460242]
[1760830941140,0.001,3895.9,3895.8,3.3114693]
[1760830944254,0.001,3895.9,3895.8,2.74060786]
[1760830944619,0.001,3895.9,3895.8,0.17374098]
[1760830945151,0.1748,3895.9,3895.8,0.17374098]
[1760830945529,0.2738,3895.9,3895.8,0.17374098]
[1760830945730,0.1748,3895.9,3895.8,0.17374098]
[1760830946855,0.129,3895.9,3895.8,2.74060786]
[1760830947018,0.129,3895.9,3895.8,3.40231453]
[1760830947552,0.129,3895.9,3895.8,3.83341453]
[1760830954139,0.129,3895.9,3895.8,0.83544765]
[1760830954347,0.129,3895.9,3895.8,0.17374098]
[1760830954735,0.129,3895.9,3895.8,2.74060786]
[1760830957168,0.129,3895.9,3895.8,3.21510786]
[1760830959060,0.129,3895.9,3895.8,2.74060786]
[1760830959627,0.129,3895.9,3895.8,0.17374098]
[1760830959831,0.228,3895.9,3895.8,0.17374098]
[1760830960028,0.129,3895.9,3895.8,2.74060786]
[1760830972498,0.129,3895.9,3895.8,0.17374098]
[1760830973802,0.228,3895.9,3895.8,0.17374098]
[1760830974199,0.129,3895.9,3895.8,0.17374098]
[1760830974804,0.228,3895.9,3895.8,0.17374098]
[1760830978707,0.8616,3895.9,3895.8,0.17374098]
[1760830979034,5.85100089,3895.9,3895.8,0.17374098]
[1760830979540,5.8062578,3895.9,3895.8,0.17374098]
[1760830980021,5.8062578,3895.9,3895.5,0.002]
[1760830980022,0.6336,3895.8,3895.5,0.002]
[1760830980327,0.7326,3895.8,3895.6,0.17374098]
[1760830980625,0.7326,3895.7,3895.6,0.17374098]
[1760830982494,0.77734402,3895.7,3895.6,0.17374098]
[1760830983312,0.67834402,3895.7,3895.6,0.17374098]
[1760830987326,0.77734402,3895.7,3895.6,0.17374098]
[1760830987630,0.67834402,3895.7,3895.6,0.17374098]
[1760830988392,0.77734402,3895.7,3895.6,0.17374098]
[1760830989023,0.67834402,3895.7,3895.6,0.17374098]
[1760830989443,0.77734402,3895.7,3895.6,0.17374098]
[1760830991201,0.04474402,3895.7,3895.5,0.002]
[1760830991397,0.6336,3895.6,3895.5,0.002]
[1760830998909,0.6336,3895.6,3895.5,0.4381]
[1760830999114,0.6336,3895.6,3895.5,0.54307189]
[1760831002041,0.04474402,3895.7,3895.5,0.54307189]
[1760831002222,0.04474402,3895.7,3895.6,0.3139845]
[1760831002622,0.001,3895.9,3895.6,0.85302989]
[1760831003144,0.001,3895.9,3895.7,0.4361]
[1760831003352,0.001,3895.9,3895.7,0.53904539]
[1760831003572,0.001,3895.9,3895.7,0.4361]
[1760831003850,0.001,3895.9,3895.8,0.43741799]
[1760831004262,0.001,3895.9,3895.8,0.87351799]
[1760831005169,0.04573877,3895.9,3895.8,0.87351799]
[1760831006949,0.17373877,3895.9,3895.8,3.44038487]
[1760831014282,0.129,3895.9,3895.8,3.44038487]
[1760831015707,0.001,3895.9,3895.8,3.44038487]
[1760831021118,0.001,3895.9,3895.8,7.2891744]
[1760831027325,0.001,3895.9,3895.8,6.8530744]
[1760831027640,0.001,3895.9,3895.8,4.28620752]
[1760831027795,0.001,3895.9,3895.8,3.95173413]
[1760831030200,0.001,3895.9,3895.8,6.51860101]
[1760831030832,0.001,3895.9,3895.8,3.95173413]
[1760831032215,0.001,3895.9,3895.8,6.51860101]
[1760831032724,0.001,3895.9,3895.8,3.95173413]
[1760831032920,0.001,3895.9,3895.8,0.1029446]
[1760831033120,0.001,3895.9,3895.8,2.66981148]
[1760831034525,0.001,3895.9,3895.8,3.66589039]
[1760831036346,0.001,3895.9,3895.8,3.69155905]
[1760831041446,0.001,3895.9,3895.8,3.66589039]
[1760831044059,0.001,3895.9,3895.8,0.1029446]
[1760831044060,0.1453,3895.9,3895.8,0.1029446]
[1760831044257,0.1453,3895.9,3895.5,0.002]
[1760831045050,5.5782578,3895.8,3895.6,0.10295467]
[1760831045350,5.5782578,3895.8,3895.5,0.002]
[1760831045351,0.6336,3895.6,3895.5,0.002]
[1760831045733,0.7326,3895.6,3895.5,0.002]
[1760831051850,0.77734557,3895.6,3895.5,0.002]
[1760831052870,0.67834557,3895.6,3895.5,0.002]
[1760831053638,0.67934557,3895.6,3895.5,0.002]
[1760831054834,0.77834557,3895.6,3895.5,0.002]
[1760831055239,0.67934557,3895.6,3895.5,0.002]
[1760831057079,0.77834557,3895.6,3895.5,0.002]
[1760831060359,0.67934557,3895.6,3895.5,0.002]
[1760831065008,0.82364557,3895.6,3895.5,0.002]
[1760831069520,0.67934557,3895.6,3895.5,0.002]
[1760831080533,0.67934557,3895.6,3895.5,0.10496712]
[1760831086931,0.67934557,3895.6,3895.5,0.002]
[1760831087551,3.24634423,3895.6,3895.5,0.002]
[1760831087750,3.39064423,3895.6,3895.5,0.002]
[1760831088357,3.34589866,3895.6,3895.5,0.002]
[1760831089461,3.20159866,3895.6,3895.5,0.002]
[1760831090066,3.34589866,3895.6,3895.5,0.002]
[1760831090990,0.7789,3895.6,3895.5,0.002]
[1760831091486,1.22635221,3895.6,3895.5,0.002]
[1760831093203,0.82364815,3895.6,3895.5,0.002]
[1760831095900,0.67934815,3895.6,3895.5,0.002]
[1760831096401,1.08205482,3895.6,3895.5,0.002]
[1760831103612,1.08205482,3895.6,3895.5,0.4415]
[1760831104595,0.44845482,3895.6,3895.5,0.4653]
[1760831104801,0.04574815,3895.6,3895.5,0.9068]
[1760831105304,0.001,3895.6,3895.5,0.9068]
[1760831107792,0.04574325,3895.6,3895.5,0.9068]
[1760831109326,0.001,3895.6,3895.5,0.9068]
[1760831109842,0.001,3895.6,3895.5,0.4435]
[1760831110022,0.001,3895.6,3895.5,0.8941]
[1760831127282,0.04574297,3895.6,3895.5,0.8941]
[1760831130245,0.04574297,3895.6,3895.5,1.15671]
[1760831131077,0.04574297,3895.6,3895.5,0.8941]
[1760831148885,0.001,3895.6,3895.5,0.8941]
[1760831150015,0.001,3895.6,3895.5,0.4435]
[1760831153411,0.04574076,3895.6,3895.5,0.4435]
[1760831153609,0.04574076,3895.6,3895.5,0.8846]
[1760831155198,0.04574076,3895.6,3895.5,1.23017159]
[1760831156715,0.04574076,3895.6,3895.5,3.79723615]
[1760831159022,0.04574076,3895.6,3895.5,1.23017159]
[1760831159519,0.04574076,3895.6,3895.5,0.4435]
[1760831161423,0.1,3895.6,3895.5,0.4435]
[1760831162292,0.7336,3895.6,3895.5,0.4435]
[1760831163413,0.6346,3895.6,3895.5,0.4435]
[1760831164414,0.001,3895.6,3895.5,0.4435]
[1760831165523,0.1,3895.6,3895.5,0.4435]
[1760831165685,0.14474216,3895.6,3895.5,0.4435]
[1760831168008,0.77834216,3895.6,3895.5,0.4435]
[1760831168722,0.7336,3895.6,3895.5,0.4435]
[1760831168929,0.67934307,3895.6,3895.5,0.4435]
[1760831169323,0.6346,3895.6,3895.5,0.4435]
[1760831169970,0.7336,3895.6,3895.5,0.4435]
[1760831170849,0.6346,3895.6,3895.5,0.4435]
[1760831171842,0.001,3895.6,3895.5,0.4435]
[1760831172055,0.04574242,3895.6,3895.5,0.912]
[1760831178558,0.04574242,3895.6,3895.5,0.4435]
[1760831178742,0.04574242,3895.6,3895.5,0.912]
[1760831184693,0.04574242,3895.6,3895.5,1.26032472]
[1760831185380,0.04574242,3895.6,3895.5,1.28599536]
[1760831185956,0.04574242,3895.6,3895.5,3.01399536]
[1760831186873,0.04574242,3895.6,3895.5,1.28599536]
[1760831187078,0.04574242,3895.6,3895.5,1.26032472]
[1760831188392,0.04574242,3895.6,3895.5,2.98832472]
[1760831195576,0.04574242,3895.6,3895.5,1.26032472]
[1760831195972,0.04574242,3895.6,3895.5,2.98832472]
[1760831199120,0.04574242,3895.6,3895.5,1.26032472]
[1760831200617,0.04574242,3895.6,3895.5,5.55538928]
[1760831203599,0.04574242,3895.6,3895.5,2.98832472]
[1760831203801,0.04574242,3895.6,3895.5,2.51982472]
[1760831204006,0.04574242,3895.6,3895.5,2.1715]
[1760831206208,0.14474242,3895.6,3895.5,2.1715]
[1760831207331,0.04574242,3895.6,3895.5,2.1715]
[1760831208825,0.14474242,3895.6,3895.5,2.1715]
[1760831209025,0.77834242,3895.6,3895.5,0.4435]
[1760831209536,0.7336,3895.6,3895.5,0.4435]
[1760831213929,0.77834418,3895.6,3895.5,0.4435]
[1760831214645,0.67934418,3895.6,3895.5,0.4435]
[1760831226720,0.67934418,3895.6,3895.5,0.9063]
[1760831226925,0.04574418,3895.6,3895.5,0.9063]
[1760831227526,0.001,3895.6,3895.5,0.9063]
[1760831227727,0.001,3895.6,3895.5,0.4435]
[1760831228148,0.7336,3895.6,3895.5,0.4435]
[1760831230659,0.6346,3895.6,3895.5,0.4435]
[1760831232239,0.6346,3895.6,3895.5,0.002]
[1760831232571,0.7336,3895.6,3895.5,0.002]
[1760831234427,0.6346,3895.6,3895.5,0.002]
[1760831234831,0.7336,3895.6,3895.5,0.002]
[1760831238215,0.6346,3895.6,3895.5,0.002]
[1760831239371,0.6346,3895.6,3895.5,0.4595]
[1760831240911,0.6346,3895.6,3895.5,0.002]
[1760831242304,0.7336,3895.6,3895.5,0.002]
[1760831242506,1.13630649,3895.6,3895.5,0.002]
[1760831243103,1.03730649,3895.6,3895.5,0.002]
[1760831244398,1.03730649,3895.6,3895.5,0.4595]
[1760831246313,0.6346,3895.6,3895.5,0.4595]
[1760831246499,0.6346,3895.6,3895.5,0.921]
[1760831248709,0.67934356,3895.6,3895.5,0.921]
[1760831250010,0.6346,3895.6,3895.5,0.921]
[1760831250880,0.001,3895.6,3895.5,0.921]
[1760831253227,0.04574196,3895.6,3895.5,0.921]
[1760831268613,0.04574196,3895.6,3895.5,3.5137352]
[1760831268818,0.001,3895.9,3895.8,2.56686688]
[1760831269041,0.001,3895.9,3895.8,2.59253554]
[1760831269251,0.001,3895.9,3895.8,3.06113554]
[1760831269547,0.001,3895.9,3895.8,3.19013554]
[1760831271748,0.001,3895.9,3895.8,3.16446688]
[1760831272049,0.001,3895.9,3895.8,4.03600621]
[1760831277600,0.001,3895.9,3895.8,4.06167487]
[1760831277800,0.001,3895.9,3895.8,5.76400621]
[1760831286539,0.001,3895.9,3895.8,8.47100621]
[1760831286813,1e-08,3896.1,3896.0,5.27373511]
[1760831287110,1e-08,3896.1,3896.0,15.37048035]
[1760831287309,1e-08,3896.1,3896.0,15.80878035]
[1760831287612,1e-08,3896.1,3896.0,15.91167278]
[1760831287822,1e-08,3896.1,3896.0,16.54527278]
[1760831291136,1e-08,3896.1,3896.0,15.91167278]
[1760831291334,1e-08,3896.1,3896.0,10.18937278]
[1760831291536,1e-08,3896.1,3896.0,13.20467278]
[1760831293236,1e-08,3896.1,3896.0,19.76046231]
[1760831294243,1e-08,3896.1,3896.0,9.09350451]
[1760831294618,1e-08,3896.1,3896.0,9.53180451]
[1760831294941,1e-08,3896.1,3896.0,9.09350451]
[1760831295141,1e-08,3896.1,3896.0,9.53180451]
[1760831295826,1e-08,3896.1,3896.0,9.09350451]
[1760831296336,1e-08,3896.1,3896.0,9.53180451]
[1760831296513,1e-08,3896.1,3896.0,9.65980451]
[1760831296837,1e-08,3896.1,3896.0,9.22150451]
[1760831297015,1e-08,3896.1,3896.0,9.65980451]
[1760831299651,1e-08,3896.1,3896.0,9.22150451]
[1760831304658,1e-08,3896.1,3896.0,9.22350451]
[1760831312291,0.09900001,3896.1,3896.0,9.09550451]
[1760831312444,0.09900001,3896.1,3896.0,8.24841707]
[1760831314196,0.09900001,3896.1,3896.0,6.52041707]
[1760831316970,0.09900001,3896.1,3896.0,2.67162754]
[1760831317499,0.14373186,3896.1,3896.0,2.67162754]
[1760831319805,0.04473186,3896.1,3896.0,2.67162754]
[1760831339742,0.04473186,3896.1,3896.0,3.63909935]
[1760831340050,0.04473186,3896.1,3896.0,4.1242667]
[1760831340554,1e-08,3896.1,3896.0,7.97305623]
[1760831340851,1e-08,3896.1,3896.0,7.94738888]
[1760831346360,1e-08,3896.1,3896.0,6.52041707]
[1760831346537,1e-08,3896.1,3896.0,6.98351707]
[1760831349963,1e-08,3896.1,3896.0,6.52041707]
[1760831350458,1e-08,3896.1,3896.0,6.98351707]
[1760831351162,1e-08,3896.1,3896.0,6.52041707]
[1760831352361,1e-08,3896.1,3896.0,2.67162754]
[1760831356271,0.04473168,3896.1,3896.0,2.67162754]
[1760831364981,0.04473168,3896.1,3896.0,3.13472754]
[1760831370166,0.04473168,3896.1,3896.0,2.67162754]
[1760831373082,0.04473168,3896.1,3896.0,3.13472754]
[1760831374205,0.04473168,3896.1,3896.0,2.67162754]
[1760831375575,0.04473168,3896.1,3896.0,0.10489243]
[1760831376278,0.14433168,3896.1,3896.0,0.10489243]
[1760831376796,0.09960001,3896.1,3896.0,0.10489243]
[1760831377786,1e-08,3896.1,3896.0,0.10489243]
[1760831379679,0.09960001,3896.1,3896.0,0.10489243]
[1760831381088,1e-08,3896.1,3896.0,0.10489243]
[1760831385290,0.09960001,3896.1,3896.0,0.10489243]
[1760831387115,1e-08,3896.1,3896.0,0.10489243]
[1760831391308,0.12373559,3896.2,3896.0,0.10489243]
[1760831391801,0.12373559,3896.2,3896.0,0.002]
[1760831392005,0.75733559,3896.2,3896.1,0.12373559]
[1760831397947,0.12373559,3896.2,3896.1,0.80553559]
[1760831398808,0.07373559,3896.2,3896.1,0.80553559]
[1760831399261,0.07373559,3896.2,3896.1,0.12373559]
[1760831400559,0.17333559,3896.2,3896.1,0.12373559]
[1760831400747,0.17333559,3896.2,3896.0,0.002]
[1760831400748,23.977545,3896.1,3896.0,0.002]
[1760831400950,14.323583,3896.1,3896.0,0.002]
[1760831401241,5.4072,3896.1,3896.0,0.002]
[1760831401862,7.97386923,3896.1,3896.0,0.002]
[1760831402342,35.02786923,3896.1,3896.0,0.002]
[1760831403957,30.69792523,3896.1,3896.0,0.002]
[1760831404124,5.02786923,3896.1,3896.0,0.002]
[1760831404327,30.76438123,3896.1,3896.0,0.002]
[1760831404848,25.933978,3895.6,3895.5,0.002]
[1760831405045,33.44563446,3895.6,3895.5,0.002]
[1760831405257,39.97235646,3895.6,3895.5,0.002]
[1760831405452,40.37510732,3895.6,3895.5,0.002]
[1760831405671,40.47810281,3895.6,3895.5,0.002]
[1760831406324,34.12349081,3895.6,3895.5,0.002]
[1760831406532,33.34229402,3895.6,3895.5,0.002]
[1760831407429,25.26291302,3895.6,3895.5,0.002]
[1760831407630,24.83090102,3895.6,3895.5,0.002]
[1760831408264,18.84184702,3895.6,3895.5,0.002]
[1760831408425,15.38841402,3895.6,3895.5,0.002]
[1760831409063,0.44750207,3895.6,3895.5,0.002]
[1760831409275,1.03635086,3895.6,3895.5,0.002]
[1760831409463,8.97878986,3895.6,3895.5,0.002]
[1760831409666,13.92344766,3895.6,3895.5,0.002]
[1760831410146,14.02244766,3895.6,3895.5,0.002]
[1760831410356,23.32154166,3895.6,3895.5,0.002]
[1760831410563,22.89564566,3895.6,3895.5,0.002]
[1760831410954,11.90695166,3895.6,3895.5,0.002]
[1760831411159,10.49144766,3895.6,3895.5,0.002]
[1760831411369,14.87371566,3895.6,3895.5,0.002]
[1760831412382,14.19887253,3895.6,3895.5,0.002]
[1760831412566,14.19486353,3895.6,3895.5,0.002]
[1760831413158,16.86086219,3895.6,3895.5,0.002]
[1760831413548,31.21373819,3895.6,3895.5,0.002]
[1760831414495,20.35831919,3895.6,3895.5,0.002]
[1760831414647,19.91810119,3895.6,3895.5,0.002]
[1760831414848,19.81910119,3895.6,3895.5,0.002]
[1760831415048,19.32941419,3895.6,3895.5,0.002]
[1760831415349,6.02575653,3895.6,3895.5,0.4639]
[1760831415777,11.94729253,3895.6,3895.5,0.4639]
[1760831416169,10.96985753,3895.6,3895.5,0.002]
[1760831416973,6.02575653,3895.6,3895.5,0.002]
[1760831417164,21.73091953,3895.6,3895.5,0.002]
[1760831417370,18.16150853,3895.6,3895.5,0.002]
[1760831417574,17.41542767,3895.6,3895.5,0.002]
[1760831417953,19.98242633,3895.6,3895.5,0.002]
[1760831418176,22.96397633,3895.6,3895.5,0.002]
[1760831418577,19.99529933,3895.6,3895.5,0.002]
[1760831419296,21.14018633,3895.6,3895.5,0.002]
[1760831419674,18.57318767,3895.6,3895.5,0.002]
[1760831419894,17.41542767,3895.6,3895.5,0.002]
[1760831420193,20.41862633,3895.6,3895.5,0.002]
[1760831420360,20.82133714,3895.6,3895.5,0.002]
[1760831421404,22.52030014,3895.6,3895.5,0.002]
[1760831422260,8.59371514,3895.6,3895.5,0.002]
[1760831422497,23.66848614,3895.6,3895.5,0.002]
[1760831423462,31.88501114,3895.6,3895.5,0.002]
[1760831424095,20.50672948,3895.6,3895.5,0.002]
[1760831424274,23.07372814,3895.6,3895.5,0.002]
[1760831424474,23.49795014,3895.6,3895.5,0.002]
[1760831424860,15.00101348,3895.6,3895.5,0.4639]
[1760831425067,8.93334948,3895.6,3895.5,0.4639]
[1760831425476,30.16196133,3895.6,3895.5,0.002]
[1760831425680,29.11184133,3895.6,3895.5,0.002]
[1760831425890,26.66821333,3895.6,3895.5,0.002]
[1760831426096,25.05533933,3895.6,3895.5,0.002]
[1760831426601,8.19100433,3895.6,3895.5,0.002]
[1760831426783,27.59532433,3895.6,3895.5,0.002]
[1760831427305,27.49632433,3895.6,3895.5,0.002]
[1760831427670,27.51278433,3895.6,3895.5,0.002]
[1760831428705,27.87411567,3895.6,3895.5,0.002]
[1760831429410,29.70111567,3895.6,3895.5,0.002]
[1760831429611,31.80719567,3895.6,3895.5,0.002]
[1760831429911,30.72025767,3895.6,3895.5,0.002]
[1760831430417,30.82325104,3895.6,3895.5,0.002]
[1760831430614,10.52371604,3895.6,3895.5,0.002]
[1760831430784,34.16387804,3895.6,3895.5,0.002]
[1760831431580,34.06487804,3895.6,3895.5,0.002]
[1760831431791,35.61570804,3895.6,3895.5,0.002]
[1760831431998,35.71470804,3895.6,3895.5,0.002]
[1760831432808,37.56663804,3895.6,3895.5,0.002]
[1760831433100,35.93329717,3895.6,3895.5,0.002]
[1760831433806,40.47896817,3895.6,3895.5,0.002]
[1760831434010,40.07624983,3895.6,3895.5,0.002]
[1760831434218,36.34753783,3895.6,3895.5,0.002]
[1760831434372,32.20990283,3895.6,3895.5,0.002]
[1760831434578,19.01971483,3895.6,3895.5,0.002]
[1760831434800,35.18988983,3895.6,3895.5,0.002]
[1760831435677,34.37512183,3895.6,3895.5,0.002]
[1760831436009,35.55455467,3895.6,3895.5,0.002]
[1760831436507,34.02634167,3895.6,3895.5,0.002]
[1760831436818,34.02781367,3895.6,3895.5,0.002]
[1760831437007,34.43055131,3895.6,3895.5,0.002]
[1760831437388,30.76541931,3895.6,3895.5,0.002]
[1760831437588,29.61762731,3895.6,3895.5,0.002]
[1760831437770,10.42473831,3895.6,3895.5,0.002]
[1760831437976,32.37351131,3895.6,3895.5,0.002]
[1760831438723,30.67705931,3895.6,3895.5,0.002]
[1760831438888,10.42473831,3895.6,3895.5,0.002]
[1760831439092,30.66221131,3895.6,3895.5,0.002]
[1760831439425,26.09164231,3895.6,3895.5,0.002]
[1760831439573,14.30895994,3895.6,3895.5,0.002]
[1760831439775,15.04555092,3895.6,3895.5,0.002]
[1760831439975,20.60464992,3895.6,3895.5,0.002]
[1760831440925,20.01555108,3895.6,3895.5,0.002]
[1760831441126,20.01498108,3895.6,3895.5,0.002]
[1760831441626,19.9119901,3895.6,3895.5,0.002]
[1760831442205,21.7241641,3895.6,3895.5,0.002]
[1760831443237,10.2769941,3895.6,3895.5,0.002]
[1760831443533,22.4181381,3895.6,3895.5,0.002]
[1760831444231,32.9622291,3895.6,3895.5,0.002]
[1760831444438,32.7587211,3895.6,3895.5,0.002]
[1760831444921,32.80347159,3895.6,3895.5,0.002]
[1760831445101,30.47183959,3895.6,3895.5,0.002]
[1760831445303,30.56414059,3895.6,3895.5,0.002]
[1760831445703,28.84980159,3895.6,3895.5,0.002]
[1760831445903,25.28170859,3895.6,3895.5,0.002]
[1760831446222,19.34232159,3895.6,3895.5,0.002]
[1760831446438,20.48841759,3895.6,3895.5,0.002]
[1760831447434,21.83467359,3895.6,3895.5,0.002]
[1760831448431,30.31194459,3895.6,3895.5,0.002]
[1760831448637,30.2671941,3895.6,3895.5,0.002]
[1760831449427,31.9110491,3895.6,3895.5,0.002]
[1760831450430,31.9137931,3895.6,3895.5,0.002]
[1760831450859,30.9140991,3895.6,3895.5,0.002]
[1760831451665,30.9159501,3895.6,3895.5,0.002]
[1760831451967,30.36149255,3895.6,3895.5,0.002]
[1760831452526,30.35909055,3895.6,3895.5,0.002]
[1760831452731,29.60744955,3895.6,3895.5,0.002]
[1760831453858,29.33141555,3895.6,3895.5,0.002]
[1760831454043,28.51125855,3895.6,3895.5,0.002]
[1760831454747,29.50985455,3895.6,3895.5,0.002]
[1760831455744,29.50249955,3895.6,3895.5,0.002]
[1760831456568,28.50155455,3895.6,3895.5,0.002]